fUSD/lending_fUSD_20240327
["ID","MTS","AMOUNT","RATE_DAILY","PERIOD"]
[320701264,1711516242634,-3447.57691252,0.000488,2]
[320701265,1711516242733,-389.11166,0.000488,2]
[320701266,1711516242745,-20833.7056101,0.000488,2]
[320701269,1711516245548,-81426.50022702,0.000488,2]
[320701270,1711516245684,-18658.62105794,0.000488,2]
[320701271,1711516245855,-14687.84452435,0.000488,2]
[320701272,1711516245868,-790.12443875,0.000488,2]
[320701273,1711516246138,-629.27928532,0.000488,2]
[320701274,1711516246154,-16464.63930764,0.000488,2]
[320701275,1711516246166,-18496.02193698,0.000488,2]
[320701276,1711516246178,-62022.14978477,0.000488,2]
[320701277,1711516246190,-5693.87149002,0.000488,2]
[320701278,1711516246199,-303.79097998,0.000488,2]
[320701279,1711516246209,-555.45606284,0.000488,44]
[320701280,1711516246219,-2200.0,0.000488,4]
[320701281,1711516246228,-800.0,0.00048835,25]
[320701282,1711516246238,-191.14,0.0004887,15]
[320701283,1711516246248,-150.0,0.00048879,7]
[320701284,1711516246258,-150.0,0.00048879,7]
[320701285,1711516246268,-160.8838293,0.00048879,30]
[320701286,1711516246278,-67962.19025819,0.0004888,2]
[320701287,1711516246303,-2127.57608946,0.0004888,2]
[320701288,1711516322788,-192.1,0.00027328,2]
[320701289,1711516946076,350.0,0.00025,3]
[320701290,1711517247141,-718.60420916,0.0003927,4]
[320701291,1711517247163,-150.0,0.00039271,4]
[320701292,1711517247183,-185.65498157,0.00039271,4]
[320701298,1711517431606,-1124.0,0.00038,2]
[320701299,1711517431617,-155.0,0.00039256,4]
[320701300,1711517431626,-1000.0,0.00039257,2]
[320701301,1711517431638,-598.63615172,0.00039258,4]
[320701302,1711517431648,-4119.49703251,0.00039258,4]
[320701303,1711517431658,-350.35633815,0.00039259,4]
[320701304,1711517431667,-6122.51139352,0.0003926,4]
[320701305,1711517431677,-316.21826941,0.00039274,4]
[320701306,1711517431687,-158.14977216,0.00039275,2]
[320701307,1711517431697,-774.0,0.000394,2]
[320701308,1711517431708,-712.61418707,0.00040398,4]
[320701309,1711517431718,-8740.83,0.00040398,2]
[320701310,1711517431728,-1000.0,0.000406,15]
[320701311,1711517431737,-499.99,0.000406,2]
[320701312,1711517431747,-158.14977214,0.00040681,2]
[320701313,1711517431757,-1000.0,0.000409,15]
[320701314,1711517431768,-428.11,0.00041195,2]
[320701315,1711517431780,-393.92,0.00041195,2]
[320701316,1711517431790,-224.99,0.00041195,30]
[320701317,1711517431801,-158.14977214,0.00042088,2]
[320701318,1711517431812,-679.98,0.0004226,2]
[320701319,1711517431823,-250.0,0.00042287,2]
[320701320,1711517431833,-165.32,0.00042328,15]
[320701321,1711517431843,-250.0,0.00042376,2]
[320701322,1711517431854,-250.0,0.00042376,110]
[320701323,1711517431864,-1500.0,0.00042426,120]
[320701324,1711517431875,-400.06,0.00042625,2]
[320701325,1711517431886,-11900.0,0.00042866,2]
[320701326,1711517431895,-3831.04,0.0004293,2]
[320701327,1711517431905,-200.0,0.00042956,2]
[320701328,1711517431916,-173.33,0.00042981,120]
[320701329,1711517431925,-190.01,0.00043008,2]
[320701330,1711517431934,-216.0,0.00043054,2]
[320701331,1711517431944,-1000.0,0.00043225,120]
[320701332,1711517431953,-571.0,0.00043314,2]
[320701333,1711517431962,-14135.89,0.00043351,2]
[320701334,1711517431973,-241.87920686,0.00043358,2]
[320701335,1711517431981,-4270.66,0.00043458,2]
[320701336,1711517431991,-166.59,0.00043459,2]
[320701337,1711517432000,-428.11,0.00043459,2]
[320701338,1711517432009,-158.14977214,0.00043494,2]
[320701339,1711517432018,-217.43,0.00043579,2]
[320701340,1711517432027,-150.0,0.00043637,2]
[320701341,1711517432036,-1521.35295712,0.000438,2]
[320701342,1711517432045,-9999.99,0.00043805,2]
[320701343,1711517432055,-784.0,0.00043857,2]
[320701344,1711517432063,-208.63,0.00043942,120]
[320701345,1711517432073,-152.03180258,0.00043989,30]
[320701346,1711517432083,-646.91054049,0.00043999,4]
[320701347,1711517432093,-170.46952289,0.00043999,4]
[320701348,1711517432103,-1369.53548763,0.00043999,4]
[320701349,1711517432115,-5000.0,0.00044,14]
[320701350,1711517432125,-241.87920686,0.00044073,2]
[320701351,1711517432134,-241.87920686,0.00044787,2]
[320701352,1711517432144,-1405.81884547,0.00044787,11]
[320701353,1711517432153,-1058.7283,0.00044789,2]
[320701354,1711517432162,-527.92,0.0004479,2]
[320701355,1711517432173,-1638.04203423,0.00044794,2]
[320701356,1711517432183,-4189.21861815,0.00044799,2]
[320701357,1711517432193,-267.3106379,0.00044799,21]
[320701358,1711517432203,-637.58980701,0.00044799,2]
[320701359,1711517432213,-204.0832479,0.000448,17]
[320701360,1711517432224,-297723.43688216,0.000448,7]
[320701361,1711517432236,-527.92,0.00044879,2]
[320701362,1711517432247,-162.12336104,0.00044887,4]
[320701363,1711517432257,-155.19579303,0.00044888,4]
[320701364,1711517432266,-50078.871,0.00044889,30]
[320701365,1711517432276,-27101.40582992,0.00044889,2]
[320701366,1711517432285,-527.92,0.00044889,2]
[320701367,1711517432294,-184.50039256,0.00044894,2]
[320701368,1711517432305,-1236.34018554,0.00044897,4]
[320701369,1711517432316,-495.19,0.00044899,2]
[320701370,1711517432325,-2772.13,0.00044899,2]
[320701371,1711517432335,-741.31,0.00044899,2]
[320701372,1711517432344,-113032.35191801,0.00044899,2]
[320701373,1711517432357,-1020.74682131,0.00044899,2]
[320701374,1711517432370,-259.94301548,0.00044899,2]
[320701375,1711517432410,-6056.18152594,0.00044899,2]
[320701376,1711517432550,-4212.5929,0.00044899,2]
[320701377,1711517432563,-17737.32333038,0.00044899,2]
[320701378,1711517432577,-10538.98648106,0.00044899,2]
[320701379,1711517432589,-6765.84452811,0.00044899,2]
[320701380,1711517432604,-4024.86646996,0.00044899,2]
[320701381,1711517432616,-1950.49467657,0.00044899,2]
[320701382,1711517432700,-4223.00590872,0.00044899,2]
[320701383,1711517432711,-1380.44026994,0.00044899,2]
[320701404,1711517437596,-342.155,0.000406,2]
[320701406,1711517437609,-479.225,0.000406,2]
[320701408,1711517437618,-1166.69665734,0.00044789,2]
[320701411,1711517437657,-27981.09934266,0.00044789,2]
[320701412,1711517437667,-156.63077705,0.00044896,2]
[320701413,1711517437677,-73797.22215452,0.00044899,2]
[320701414,1711517437687,-1009.3926,0.00044899,120]
[320701415,1711517437698,-11711.03117296,0.000449,20]
[320701416,1711517437709,-186.33072962,0.000449,20]
[320701417,1711517437719,-185.14452528,0.000449,20]
[320701418,1711517437728,-155.87703,0.000449,25]
[320701419,1711517437740,-158.14977214,0.000449,2]
[320701420,1711517437750,-800.0,0.00044904,2]
[320701421,1711517437759,-400.0,0.00044959,2]
[320701422,1711517437770,-177.57,0.00044969,15]
[320701423,1711517437780,-182.0,0.0004497,15]
[320701424,1711517437790,-150.5,0.00044979,15]
[320701425,1711517437800,-182.0,0.0004498,15]
[320701426,1711517437809,-527.92,0.00044985,2]
[320701427,1711517437820,-1200.0,0.00044986,2]
[320701428,1711517437830,-527.92,0.00044989,2]
[320701429,1711517437840,-527.92,0.00044989,2]
[320701430,1711517437849,-527.92,0.00044989,2]
[320701431,1711517437858,-527.92,0.00044989,2]
[320701432,1711517437868,-527.92,0.00044989,2]
[320701433,1711517437879,-527.92,0.00044989,2]
[320701434,1711517437891,-150.5,0.00044989,15]
[320701435,1711517437901,-182.0,0.0004499,15]
[320701436,1711517437910,-410.05963326,0.00044993,4]
[320701437,1711517437922,-53750.49462938,0.00044993,2]
[320701438,1711517437933,-35654.33172895,0.00044994,4]
[320701439,1711517437942,-1905.6037869,0.00044995,4]
[320701440,1711517437951,-1253.0462164,0.00044996,2]
[320701441,1711517437960,-1756.57153444,0.00044997,4]
[320701442,1711517437969,-4423.27045175,0.00044997,4]
[320701443,1711517437980,-277.28347538,0.00044997,4]
[320701444,1711517437991,-155.28046975,0.00044997,4]
[320701445,1711517438001,-2166.95825015,0.00044998,4]
[320701446,1711517438010,-253.15040409,0.00044998,4]
[320701447,1711517438020,-2343.94057078,0.00044998,4]
[320701448,1711517438030,-1429.16042548,0.00044998,4]
[320701449,1711517438039,-205.37545792,0.00044998,4]
[320701450,1711517438048,-187.33831917,0.00044998,4]
[320701451,1711517438058,-854.63911886,0.00044998,5]
[320701452,1711517438068,-1254.20020675,0.00044998,120]
[320701453,1711517438078,-776.83603317,0.00044998,2]
[320701454,1711517438088,-232.20623137,0.00044998,4]
[320701455,1711517438099,-155.0,0.00044998,4]
[320701456,1711517438109,-172.69101799,0.00044998,2]
[320701457,1711517438120,-593.34627763,0.00044998,2]
[320701458,1711517438131,-811.47476779,0.00044998,4]
[320701459,1711517438141,-1930.34898614,0.00044998,4]
[320701460,1711517438150,-205.05538198,0.00044998,4]
[320701461,1711517438162,-363.25483005,0.00044998,4]
[320701462,1711517438172,-155.4765796,0.00044998,4]
[320701463,1711517438183,-1814.82714589,0.00044998,4]
[320701464,1711517438194,-319.30622196,0.00044998,4]
[320701465,1711517438205,-305.58963213,0.00044998,4]
[320701466,1711517438214,-150.0,0.00044998,30]
[320701467,1711517438223,-310.0,0.00044998,4]
[320701468,1711517438232,-1542350.79639342,0.00044999,2]
[320701469,1711517438242,-162090.56128272,0.00045,30]
[320701470,1711517438251,-278.41,0.00045,7]
[320701471,1711517438260,-500.0,0.00045,14]
[320701472,1711517438269,-428.11,0.00045723,2]
[320701473,1711517438279,-184.50039256,0.0004594,2]
[320701474,1711517438290,-192.60986901,0.0004594,2]
[320701475,1711517438299,-583.22886597,0.0004594,40]
[320701476,1711517438309,-6642.8500717,0.0004594,2]
[320701477,1711517438318,-500000.0,0.00046,4]
[320701478,1711517438328,-831.18,0.0004604,2]
[320701479,1711517438339,-924.23,0.0004604,2]
[320701480,1711517438350,-150.0,0.0004604,2]
[320701481,1711517438360,-347.34,0.0004604,2]
[320701482,1711517438370,-517.72,0.0004604,2]
[320701483,1711517438380,-292.23,0.0004604,2]
[320701484,1711517438389,-150.0,0.0004604,2]
[320701485,1711517438399,-347.44,0.0004604,2]
[320701486,1711517438408,-300.97,0.0004604,2]
[320701487,1711517438418,-415.7,0.0004604,2]
[320701488,1711517438427,-517.72,0.0004604,2]
[320701489,1711517438438,-150.0,0.0004604,2]
[320701490,1711517438448,-347.44,0.0004604,2]
[320701491,1711517438458,-415.7,0.0004604,2]
[320701492,1711517438467,-517.72,0.0004604,2]
[320701493,1711517438475,-150.0,0.0004604,2]
[320701494,1711517438485,-818.36,0.0004604,2]
[320701495,1711517438494,-347.44,0.0004604,2]
[320701496,1711517438505,-415.7,0.0004604,2]
[320701497,1711517438514,-415.7,0.0004604,2]
[320701498,1711517438524,-150.0,0.0004604,2]
[320701499,1711517438534,-415.15,0.0004604,2]
[320701500,1711517438546,-339.98,0.0004604,2]
[320701501,1711517438555,-818.36,0.0004604,2]
[320701502,1711517438564,-924.23,0.0004604,2]
[320701503,1711517438573,-347.04,0.0004604,2]
[320701504,1711517438583,-415.7,0.00046041,2]
[320701505,1711517438593,-162.88,0.00046041,2]
[320701506,1711517438602,-1872.94,0.00046041,2]
[320701507,1711517438613,-246.11,0.00046041,2]
[320701508,1711517438623,-415.7,0.00046041,2]
[320701509,1711517438633,-415.7,0.00046041,2]
[320701510,1711517438642,-898.5,0.00046041,2]
[320701511,1711517438651,-415.7,0.00046041,2]
[320701512,1711517438662,-415.7,0.00046041,2]
[320701513,1711517438671,-766.43,0.00046041,2]
[320701514,1711517438681,-694.88,0.00046098,2]
[320701515,1711517438691,-347.44,0.00046098,2]
[320701516,1711517438701,-347.44,0.00046098,2]
[320701517,1711517438712,-347.44,0.00046098,2]
[320701518,1711517438722,-347.44,0.00046098,2]
[320701519,1711517438732,-180.79,0.00046098,2]
[320701520,1711517438742,-1638.04203415,0.00046138,2]
[320701521,1711517438753,-4189.21861809,0.00046142,2]
[320701522,1711517438764,-1405.81884541,0.00046202,12]
[320701523,1711517438775,-11711.03117288,0.00046254,21]
[320701524,1711517438789,-311.346879,0.00046301,14]
[320701525,1711517438798,-637.58980692,0.00046349,2]
[320701526,1711517438808,-158.91989118,0.00046485,30]
[320701527,1711517438817,-175.32,0.00047067,2]
[320701528,1711517438826,-311.346879,0.00047123,14]
[320701529,1711517438836,-158.91989118,0.00047293,30]
[320701530,1711517438845,-154.18221895,0.00047327,30]
[320701531,1711517438855,-155.15974478,0.00047387,30]
[320701532,1711517438865,-154.91635219,0.00047447,30]
[320701533,1711517438875,-1638.04203415,0.00047481,2]
[320701534,1711517438884,-4189.21861809,0.00047485,2]
[320701535,1711517438893,-151.032714,0.00047498,91]
[320701536,1711517438903,-2478.08,0.00047571,120]
[320701537,1711517438912,-11711.03117288,0.00047609,23]
[320701538,1711517438921,-1405.81884541,0.00047618,13]
[320701539,1711517438930,-151.032714,0.00047798,93]
[320701540,1711517438939,-150.0,0.00047918,7]
[320701541,1711517438948,-58036.70373674,0.00047919,7]
[320701542,1711517438958,-311.346879,0.00047945,14]
[320701543,1711517438967,-428.11,0.00047986,2]
[320701544,1711517438977,-503.6111413,0.00048,100]
[320701545,1711517438986,-158.91989118,0.0004805,30]
[320701546,1711517438995,-170.91822185,0.00048088,30]
[320701547,1711517439006,-583.22886594,0.00048129,43]
[320701548,1711517439015,-151.032714,0.00048198,97]
[320701549,1711517439024,-200.0,0.00048284,120]
[320701550,1711517439033,-216.0,0.00048436,2]
[320701551,1711517439042,-152.02204847,0.00048472,30]
[320701552,1711517439051,-151.032714,0.00048498,98]
[320701553,1711517439060,-150.0,0.0004858,2]
[320701554,1711517439070,-39773.7506,0.000487,2]
[320701555,1711517439079,-1111.0,0.000487,4]
[320701556,1711517439088,-1000.0,0.000487,2]
[320701557,1711517439202,-1313.6124,0.000487,2]
[320701558,1711517439211,-154.87010756,0.00048706,30]
[320701559,1711517439222,-160.60239348,0.00048736,3]
[320701560,1711517439232,-311.346879,0.00048767,14]
[320701561,1711517439241,-18763.80125299,0.00048778,5]
[320701562,1711517439582,-1236.198748,0.00048778,5]
[320701563,1711517439592,-18060.9569,0.0004878,2]
[320701564,1711517439602,-176.13912234,0.0004878,120]
[320701565,1711517439611,-3334.0,0.00048786,60]
[320701566,1711517439620,-709.36350887,0.00048798,10]
[320701567,1711517439629,-151.032714,0.00048798,99]
[320701568,1711517439638,-1600.0,0.000488,120]
[320701569,1711517439647,-146643.94940913,0.000488,30]
[320701570,1711517439657,-152.02204847,0.00048815,30]
[320701571,1711517439666,-163.67173015,0.00048823,30]
[320701572,1711517439675,-1638.04203415,0.00048825,2]
[320701573,1711517439685,-4189.21861809,0.00048828,2]
[320701574,1711517439695,-800.0,0.00048835,25]
[320701575,1711517439707,-1380.03871875,0.00048877,4]
[320701576,1711517439716,-150.0,0.00048879,7]
[320701577,1711517439725,-150.0,0.00048879,7]
[320701578,1711517439734,-150.0,0.00048879,7]
[320701579,1711517439745,-687944.62490447,0.0004888,2]
[320701580,1711517439760,-1591154.69612141,0.0004888,2]
[320701581,1711517439784,-1535.18034271,0.0004888,2]
[320701582,1711517439797,-1306.02522679,0.0004888,2]
[320701583,1711517439848,-4779.52265622,0.0004888,2]
[320701584,1711517439890,-2018.10000116,0.0004888,2]
[320701585,1711517439902,-941.83137895,0.0004888,2]
[320701586,1711517439913,-14380.88516679,0.0004888,2]
[320701587,1711517439925,-349293.98585096,0.0004888,2]
[320701588,1711517439936,-4823.30170031,0.0004888,2]
[320701589,1711517440447,-716.36170073,0.00043987,2]
[320701590,1711517440460,-1129.10829927,0.00043987,2]
[320701591,1711517440470,-539.06283141,0.00044898,4]
[320701592,1711517440487,-652.65011291,0.00044898,4]
[320701593,1711517440498,-1087.29,0.00044898,4]
[320701594,1711517440632,-407.7504317,0.00044898,4]
[320701595,1711517440647,-304.30028749,0.00044898,4]
[320701596,1711517440661,-364.39315611,0.00044898,4]
[320701597,1711517442585,-28637.96429288,0.00044799,2]
[320701598,1711517442679,-1.33086503,0.00044799,2]
[320701599,1711517442756,-335.06,0.00044799,2]
[320701600,1711517442912,-293.77936893,0.00044799,2]
[320701601,1711517442967,-961.66835461,0.00044799,2]
[320701602,1711517442979,-15242.8395237,0.00044799,2]
[320701607,1711517445764,-277.05704041,0.00044799,2]
[320701733,1711518453558,-1291.95700772,0.00034543,4]
[320701736,1711518548116,-894.4879732,0.00034538,2]
[320701737,1711518548140,-1025.2626681,0.00034539,4]
[320701738,1711518548163,-781.8952699,0.00034541,2]
[320701750,1711518631810,-282.1782915,0.00034446,2]
[320701751,1711518631820,-536.1842081,0.00034541,2]
[320701752,1711518631972,-134.920522,0.00034541,2]
[320701753,1711518631982,-236.3459447,0.00034546,2]
[320701754,1711518631992,-150.0,0.00034548,10]
[320701755,1711518632003,-865.46028817,0.000384,30]
[320701756,1711518632017,-505.38615579,0.000384,30]
[320701757,1711518632030,-629.15355604,0.000384,30]
[320701758,1711518632040,-2686.32614634,0.00038495,7]
[320701759,1711518632052,-1382.54782566,0.00038495,7]
[320701760,1711518632062,-1181.69176487,0.00041469,4]
[320701761,1711518632071,-150.0,0.0004147,4]
[320701762,1711518632081,-550.82,0.00041471,2]
[320701763,1711518632090,-499.99,0.00041471,2]
[320701764,1711518632100,-200.0,0.00042809,2]
[320701765,1711518632110,-798.3514082,0.00042843,2]
[320701766,1711518632136,-442.83166524,0.00042843,2]
[320701770,1711518632165,-682.78416056,0.00042843,2]
[320701772,1711518632178,-1302.662766,0.00042843,2]
[320701774,1711518632187,-866.08904072,0.00042843,2]
[320701776,1711518632200,-1424.87696822,0.00042843,2]
[320701779,1711518632224,-1288.64349942,0.00042843,2]
[320701804,1711518637916,-3634.26049164,0.00042843,2]
[320701805,1711518637925,-739.64,0.0004288,2]
[320701806,1711518637934,-250.0,0.0004288,110]
[320701807,1711518637944,-250.0,0.00042937,2]
[320701808,1711518637954,-165.32,0.00042976,15]
[320701809,1711518637963,-250.0,0.00043101,2]
[320701810,1711518637973,-154.99,0.00043133,2]
[320701811,1711518637982,-424.59,0.0004316,2]
[320701812,1711518637992,-183.0,0.00043319,2]
[320701813,1711518638004,-162.0,0.00043407,2]
[320701814,1711518638014,-550.82,0.00043735,2]
[320701815,1711518638024,-3558.88,0.0004374,2]
[320701816,1711518638035,-432.078,0.000439,2]
[320701817,1711518638044,-152.52,0.00043981,2]
[320701818,1711518638053,-191.74101816,0.0004399,4]
[320701819,1711518638062,-1478.65479558,0.00043998,2]
[320701820,1711518638071,-172.36634446,0.00043999,2]
[320701821,1711518638080,-2023.3,0.00043999,2]
[320701822,1711518638090,-4174.23,0.00043999,18]
[320701823,1711518638100,-17525.0,0.00044,5]
[320701824,1711518638109,-50000.0,0.00044,120]
[320701825,1711518638118,-1698.97773378,0.00044,2]
[320701826,1711518638127,-14571.7201,0.00044699,2]
[320701827,1711518638136,-2500.0,0.00044699,2]
[320701828,1711518638146,-12696.35008103,0.00044797,4]
[320701829,1711518638155,-618.17009277,0.00044797,4]
[320701830,1711518638167,-215.13265289,0.00044797,4]
[320701831,1711518638176,-5355.39539731,0.00044798,4]
[320701832,1711518638185,-5236.71850245,0.00044798,2]
[320701833,1711518638194,-144076.91815444,0.00044799,2]
[320701834,1711518638205,-6580.24636229,0.00044898,4]
[320701835,1711518638214,-500.0,0.00045,14]
[320701836,1711518638223,-870.4,0.0004528,2]
[320701837,1711518638232,-323.6,0.0004528,120]
[320701838,1711518638242,-739.64,0.00045619,2]
[320701839,1711518638251,-204.0832479,0.00045972,18]
[320701840,1711518638260,-1325.69160646,0.00045999,60]
[320701841,1711518638399,-550.82,0.00045999,2]
[320701842,1711518638410,-403407.37032331,0.00046,4]
[320701843,1711518638452,-1000.0,0.00046,4]
[320701844,1711518638464,-95592.62967669,0.00046,4]
[320701845,1711518638473,-184.50039256,0.00046072,2]
[320701846,1711518638482,-152.52,0.00046272,2]
[320701847,1711518638491,-5236.71850243,0.00046446,2]
[320701848,1711518638500,-186.808128,0.00046849,14]
[320701849,1711518638510,-162.89813532,0.00047094,30]
[320701850,1711518638519,-154.94711386,0.00047219,30]
[320701851,1711518638528,-150.077567,0.00047524,30]
[320701852,1711518638537,-156.33718315,0.00047555,30]
[320701853,1711518638546,-186.808128,0.00047671,14]
[320701854,1711518638555,-163.67173015,0.00047744,30]
[320701855,1711518638564,-155.15974478,0.000478,30]
[320701856,1711518638574,-5236.71850243,0.00048093,2]
[320701857,1711518638583,-550.82,0.00048263,2]
[320701858,1711518638593,-1313.82602389,0.00048306,2]
[320701859,1711518638603,-154.18221896,0.00048357,30]
[320701860,1711518638612,-739.64,0.00048359,2]
[320701861,1711518638622,-158.91989118,0.00048451,30]
[320701862,1711518638632,-800.0,0.00048489,25]
[320701863,1711518638641,-186.808128,0.00048493,14]
[320701864,1711518638651,-1313.82602389,0.00048578,2]
[320701865,1711518638661,-1426.41873102,0.00048579,2]
[320701866,1711518638671,-200.0,0.00048662,25]
[320701867,1711518638681,-800.0,0.00048662,25]
[320701868,1711518638691,-1020.0,0.000487,117]
[320701869,1711518638701,-160.60239348,0.00048736,3]
[320701870,1711518638711,-11190.14597301,0.0004878,25]
[320701871,1711518638720,-153.41693916,0.0004878,40]
[320701872,1711518638729,-2203.61488463,0.000488,4]
[320701873,1711518638738,-2987.97447368,0.00048834,4]
[320701874,1711518638748,-200.0,0.00048834,25]
[320701875,1711518638757,-800.0,0.00048834,25]
[320701876,1711518638768,-317.3673889,0.00048871,2]
[320701877,1711518638777,-569.30285746,0.00048878,4]
[320701878,1711518638787,-212.96723672,0.00048879,4]
[320701879,1711518638796,-155.0,0.00048879,4]
[320701880,1711518638805,-2009.5353996,0.00048879,4]
[320701881,1711518638814,-50578.08409269,0.0004888,2]
[320701882,1711518639993,-462.78244067,0.0004888,2]
[320701883,1711518640005,-362.04167952,0.0004888,2]
[320701884,1711518640068,-576.14886408,0.0004888,2]
[320701885,1711518640115,-1471.733,0.0004888,2]
[320701893,1711518642828,-1066.079861,0.0004888,2]
[320701894,1711518642901,-8161.1588601,0.0004888,2]
[320701895,1711518642923,-553398.12548957,0.0004888,2]
[320701896,1711518642932,-200.0,0.0004888,7]
[320701897,1711518642941,-2000.0,0.0004888,7]
[320701898,1711518642951,-200.0,0.0004888,7]
[320701899,1711518642960,-2000.0,0.0004888,7]
[320701900,1711518642969,-200.0,0.0004888,7]
[320701901,1711518642978,-1246.52716,0.0004888,44]
[320701902,1711518642988,-200.0,0.0004888,7]
[320701903,1711518642997,-781.0,0.00048896,7]
[320701904,1711518643007,-437.04,0.000489,7]
[320701905,1711518643016,-1000.0,0.00049,120]
[320701906,1711518643025,-163.67173015,0.00049075,30]
[320701907,1711518643035,-1313.8260239,0.00049103,2]
[320701908,1711518643045,-479.0,0.000492,37]
[320701909,1711518643054,-353.0,0.000492,26]
[320701910,1711518643063,-1868.40438364,0.00049228,2]
[320701911,1711518643073,-152.02204847,0.00049229,30]
[320701912,1711518643082,-13712.9835105,0.00049242,2]
[320701913,1711518643092,-185.75681573,0.00049247,4]
[320701914,1711518643101,-156.17016417,0.00049247,4]
[320701915,1711518643111,-4696.68762944,0.00049247,4]
[320701916,1711518643120,-202.84472132,0.00049247,4]
[320701917,1711518643131,-156.72615431,0.00049247,4]
[320701918,1711518643140,-168.91502583,0.00049247,4]
[320701919,1711518643149,-553.69081066,0.00049247,4]
[320701920,1711518643160,-171.2644437,0.00049247,4]
[320701921,1711518643170,-503.646937,0.00049247,4]
[320701922,1711518643180,-157.08449773,0.00049247,4]
[320701923,1711518643190,-294.3946891,0.00049247,4]
[320701924,1711518643303,-344.27539643,0.00049247,2]
[320701925,1711518643323,-206.79961609,0.00049247,4]
[320701926,1711518643332,-1226.10470082,0.00049247,4]
[320701927,1711518643342,-207.60368085,0.00049247,4]
[320701928,1711518643353,-155.49054099,0.00049247,4]
[320701929,1711518643362,-155.0,0.00049247,4]
[320701930,1711518643371,-23196.12669152,0.00049247,4]
[320701931,1711518643381,-673.66023035,0.00049247,4]
[320701933,1711518643390,-156.77790752,0.00049247,4]
[320701935,1711518643399,-156.84538182,0.00049247,4]
[320701937,1711518643408,-321.23900899,0.00049247,4]
[320701939,1711518643418,-160.49455242,0.00049248,4]
[320701941,1711518643426,-251.50292613,0.00049248,4]
[320701942,1711518643435,-5942.88283628,0.00049248,4]
[320701945,1711518643445,-95119.34594635,0.00049249,10]
[320701958,1711518643565,-3452.05520514,0.00049249,10]
[320701960,1711518643577,-609.70634627,0.00049249,10]
[320701971,1711518643668,-2902.11283,0.00049249,10]
[320701974,1711518643683,-346.494995,0.00049249,10]
[320702025,1711518645911,-1054.922735,0.00049249,10]
[320702027,1711518645923,-21363.70247988,0.00049249,10]
[320702043,1711518646166,-48900.42663319,0.00049249,10]
[320702044,1711518646210,-3553.82064061,0.00049249,10]
[320702045,1711518646244,-1357.10475548,0.00049249,10]
[320702046,1711518670345,505.07799292,0.00018,2]
[320702047,1711518670376,32457.9,0.00018,2]
[320702048,1711518670402,5514051.12256989,0.00018,2]
[320702051,1711518797048,205.0,9.8e-05,2]
[320702052,1711518800657,223.91592197,0.0001305,2]
[320702053,1711518840397,558053.61098682,0.00018,2]
[320702054,1711519164334,53120.80154712,0.00018,2]
[320702059,1711519642257,-215.0,0.00024896,2]
[320702060,1711519642277,-1520.23693912,0.00024896,2]
[320702061,1711519748113,-763.08835726,0.00024895,2]
[320702062,1711519748137,-1628.10295733,0.00024896,2]
[320702063,1711519748159,-178.46931499,0.000249,2]
[320702064,1711519748180,-350.0,0.00025,3]
[320702065,1711519748199,-400.0,0.00027,3]
[320702066,1711519748220,-450.0,0.00029,3]
[320702067,1711519748240,-912.07938632,0.00034367,2]
[320702073,1711519831931,-3184.03472568,0.00034367,2]
[320702074,1711519831941,-212.75978993,0.0003454,4]
[320702075,1711519831950,-273.61340911,0.00036533,4]
[320702081,1711519832041,-474.71506042,0.00036533,4]
[320702082,1711519832050,-150.23167687,0.00038419,2]
[320702083,1711519832059,-109.72248304,0.00038456,4]
[320702084,1711519832071,-674.46829671,0.00038456,4]
[320702085,1711519832080,-431.32666291,0.00038456,4]
[320702086,1711519832092,-301.18466503,0.00038456,4]
[320702087,1711519832101,-187.93435087,0.00038457,4]
[320702088,1711519832110,-3000.0,0.00038458,30]
[320702089,1711519832119,-848.36552536,0.00038458,2]